Cogmind - Beta 11 X6 @@@ ROGUE MODE // 2021.07.23 @ 20:30:56 Player: Luigi Panache Result: Destroyed by D-53 Grenadier with Mini Grenade Launcher Performance ------------- Evolutions (0) 0 Regions Visited (4) 800 Robots Destroyed (38) 190 Value Destroyed (713) 713 Prototype IDs (0) 0 Alien Tech Used (0) 0 Bonus (67) 67 TOTAL SCORE: 1770 Bonus ------- Follower Combat Kills 67 Cogmind --------- Core Integrity 0/250 Matter 300/300 Energy 249/250 System Corruption 0% Temperature Cool (0) Movement Rolling (115) Ox1 Location -9/Mines Parts ------- > --- POWER (1) -------- Ion Engine > --- PROPULSION (2) --- Light Treads Compact Wheel > --- UTILITY (2) ------ Large Storage Unit Light Armor Plating > --- WEAPON (2) ------- (None) > --- INVENTORY (15) --- Light Treads Light Treads Structural Scanner Visual Processing Unit Signal Interpreter Light Armor Plating Light Armor Plating Light Armor Plating Light Armor Plating Light Armor Plating Assault Rifle Light Assault Rifle Rocket Launcher Rocket Launcher Mining Claw Peak State ------------ > --- POWER ------------ Ion Engine > --- PROPULSION ------- Light Treads Light Treads > --- UTILITY ---------- Large Storage Unit Light Armor Plating > --- WEAPON ----------- Assault Rifle Rocket Launcher > --- INVENTORY -------- Light Treads Compact Wheel Large Battery Structural Scanner Signal Interpreter Light Armor Plating Light Armor Plating Light Armor Plating Light Armor Plating Light Armor Plating Light Armor Plating Light Assault Rifle Light Assault Rifle Rocket Launcher Mining Claw [Rating: 9] Favorites ----------- Power Ion Engine Engine Ion Engine Propulsion Light Treads Treads Light Treads Wheel Compact Wheel Utility Light Armor Plating Storage Large Storage Unit Protection Light Armor Plating Weapon Assault Rifle Energy Gun Small Laser Ballistic Gun Assault Rifle Launcher Rocket Launcher Slashing Weapon Mining Claw Build | -11 -10 -10 -10 -9 ------- Run | Scr Mat Min Exi Min Slots Evolved . | . . . . . Power . | . . . . . Propulsion . | . . . . . Utility . | . . . . . Weapon . | . . . . . Parts Attached 28 | 6 14 3 1 4 Power 2 | 1 1 . . . Engine 2 | 1 1 . . . Core . | . . . . . Reactor . | . . . . . Propulsion 6 | 2 3 . . 1 Treads 5 | 2 3 . . . Leg . | . . . . . Wheel 1 | . . . . 1 Hover . | . . . . . Flight . | . . . . . Utility 7 | 1 4 . 1 1 Device . | . . . . . Storage 3 | 1 1 . 1 . Processor . | . . . . . Hackware . | . . . . . Protection 4 | . 3 . . 1 Artifact . | . . . . . Weapon 13 | 2 6 3 . 2 Energy Gun 1 | 1 . . . . Energy Cannon . | . . . . . Ballistic Gun 8 | 1 5 1 . 1 Ballistic Cannon . | . . . . . Launcher 2 | . 1 . . 1 Special Weapon . | . . . . . Impact Weapon . | . . . . . Slashing Weapon 2 | . . 2 . . Piercing Weapon . | . . . . . Special Melee Weapon . | . . . . . Unidentified Prototypes . | . . . . . Parts Lost 3 | . 1 . . 2 Power . | . . . . . Propulsion . | . . . . . Utility 1 | . . . . 1 Weapon 2 | . 1 . . 1 Highest Loss Streak 2 | . 1 . . 2 Average Slot Usage (%) 99 | . 98 100 100 99 Engine 14 | . 14 14 14 14 Treads 27 | . 27 28 28 27 Storage 14 | . 14 14 14 14 Protection 13 | . 13 14 14 14 Ballistic Gun 23 | . 26 21 14 27 Slashing Weapon 4 | . . 6 14 . Naked Turns . | . . . . . Heaviest Build 34 | 13 34 32 32 31 Greatest Support 40 | 40 40 40 40 40 Greatest Overweight (x) 1 | . . . . 1 Average Overweight (x) . | . . . . . Largest Inventory Capacity 15 | 8 15 15 15 15 Average Capacity 13 | 7 10 15 15 15 Most Carried 15 | 7 15 15 15 15 Average Carried 12 | 3 10 15 15 14 Final Capacity 15 | 8 15 15 15 15 Final Carried 15 | 7 15 15 15 15 Class Distribution -------------------- 100% | Mutant Dominant Class ---------------- Mutant | -10/Materials Mutant | -10/Mines Mutant | -10/Exiles Mutant | -9/Mines Resources | -11 -10 -10 -10 -9 ----------- Run | Scr Mat Min Exi Min Matter Collected 821 | 278 392 72 . 79 Remotely . | . . . . . Salvage Created 1022 | 129 644 79 . 170 Parts 69 | 4 45 7 . 13 Haulers Intercepted 1 | . 1 . . . Recyclers Shooed 1 | 1 . . . . Parts Field Recycled . | . . . . . Retrieved Matter . | . . . . . Parts Self-Destructed . | . . . . . Prevented . | . . . . . Kills | -11 -10 -10 -10 -9 ------- Run | Scr Mat Min Exi Min Combat Hostiles Destroyed 26 | . 14 5 . 7 Guns 20 | . 11 5 . 4 AOE 6 | . 3 . . 3 Classes Destroyed 9 | 3 6 . . . Worker 4 | 2 1 . . 1 Builder 1 | . 1 . . . Tunneler 1 | 1 . . . . Hauler 1 | . 1 . . . Recycler 2 | 1 1 . . . Operator 1 | . 1 . . . Watcher 2 | . 2 . . . Swarmer 12 | . 3 5 . 4 Grunt 14 | . 11 . . 3 Best Kill Streak 5 | 3 5 3 . 4 Combat Bots Only 5 | . 5 3 . 4 Max Kills in Single Turn 3 | 1 2 2 . 3 Gunslinging 1 | . . 1 . . Exploded 3 | . 2 . . 3 Melee . | . . . . . Uniques/NPCs Destroyed . | . . . . . Combat | -11 -10 -10 -10 -9 -------- Run | Scr Mat Min Exi Min Damage Taken 1306 | . 706 123 . 477 Core 273 | . 116 30 . 127 Absorbed by Shields . | . . . . . Core Remaining (%) 100 | 100 . . . . Volleys Fired 77 | 7 54 8 . 8 Largest 2 | 2 2 2 . 2 Hottest 60 | 60 40 40 . 40 Shots Fired 149 | 13 105 16 . 15 Gun 146 | 13 103 16 . 14 Cannon . | . . . . . Launcher 3 | . 2 . . 1 Special . | . . . . . Kinetic 139 | 6 103 16 . 14 Thermal 7 | 7 . . . . Explosive 3 | . 2 . . 1 Electromagnetic . | . . . . . Robot Hit Streak 12 | 6 12 4 . 8 Robot Miss Streak 2 | 1 2 2 . 1 Penetration Max . | . . . . . Secondary Targets 4 | . 3 1 . . Max Gunslinging Chain 1 | . 1 1 . . Shots Hit Robots 107 | 8 78 9 . 12 Core Hits 58 | 5 35 5 . 13 Critical Kills 1 | . 1 . . . Critical Parts Destroyed . | . . . . . Critical Strikes 1 | . 1 . . . Destroy 1 | . 1 . . . Melee Attacks 4 | . . 4 . . Impact . | . . . . . Slashing 4 | . . 4 . . Piercing . | . . . . . Sneak Attacks . | . . . . . Combat Hostiles . | . . . . . Follow-up Attacks . | . . . . . Damage Inflicted 1608 | 89 1060 106 . 353 Guns 1184 | 89 876 106 . 113 Cannons . | . . . . . Explosions 361 | . 143 . . 218 Melee . | . . . . . Ramming 63 | . 41 . . 22 Kinetic 1132 | 37 876 106 . 113 Thermal 52 | 52 . . . . Explosive 361 | . 143 . . 218 Electromagnetic . | . . . . . Impact . | . . . . . Slashing . | . . . . . Piercing . | . . . . . Highest Corruption . | . . . . . Average Corruption . | . . . . . Corruption Purged . | . . . . . Overload Shots . | . . . . . Overflow Damage 38 | . . . . 38 Projectiles . | . . . . . Explosions 38 | . . . . 38 Melee . | . . . . . Knockbacks . | . . . . . Impact . | . . . . . Kinetic . | . . . . . Secondary . | . . . . . Self-Inflicted Damage . | . . . . . Shots . | . . . . . Rammed 7 | . 4 . . 3 Targets Rammed 10 | . 7 . . 3 Kicked . | . . . . . Crushed 3 | . 3 . . . Highest Temperature 75 | . 75 12 . 12 Average Temperature 17 | . 20 5 . 4 Received Heat Transfer 453 | . 420 6 . 27 Siege Activations . | . . . . . Robots Corrupted . | . . . . . Combat Hostiles . | . . . . . Parts Fried . | . . . . . Impact Corruptions . | . . . . . Robots Melted . | . . . . . Combat Hostiles . | . . . . . Parts Melted . | . . . . . Heat Transferred 125 | 125 . . . . Parts Sabotaged . | . . . . . Parts Stolen . | . . . . . Parts Stripped . | . . . . . Power Chain Reactions . | . . . . . Missiles Intercepted . | . . . . . Alert | -11 -10 -10 -10 -9 ------- Run | Scr Mat Min Exi Min Peak Influence 182 | 20 145 127 . 182 Initial 31 | . 13 31 . . Average 51 | 4 48 33 . 108 Maximum Alert Level . | . . . . . Low Security (%) 100 | 100 100 100 . 100 Level 1 . | . . . . . Level 2 . | . . . . . Level 3 . | . . . . . Level 4 . | . . . . . Level 5 . | . . . . . High Security . | . . . . . Max Security . | . . . . . Squads Dispatched 3 | . 3 . . . Investigation 2 | . 2 . . . Extermination . | . . . . . Reinforcement 1 | . 1 . . . Assault . | . . . . . Garrison . | . . . . . Intercept . | . . . . . Construction Impeded . | . . . . . Haulers Reinforced . | . . . . . Active Scanning Responses . | . . . . . Cargo Convoy Interrupts . | . . . . . Stealth | -11 -10 -10 -10 -9 --------- Run | Scr Mat Min Exi Min Distress Signals 1 | . 1 . . . Communications Jammed . | . . . . . Distress Signals . | . . . . . Times Spotted 47 | . 24 8 . 15 Peak Tracking Total 10 | . 6 3 . 10 Tactical Retreats 1 | . . . . 1 Traps | -11 -10 -10 -10 -9 ------- Run | Scr Mat Min Exi Min Traps Triggered . | . . . . . Indirectly . | . . . . . Trap Hack Attempts . | . . . . . Triggered . | . . . . . Disarmed . | . . . . . Reprogrammed . | . . . . . Reused . | . . . . . Traps Extracted . | . . . . . Installed . | . . . . . Triggered . | . . . . . Machines | -11 -10 -10 -10 -9 ---------- Run | Scr Mat Min Exi Min Machines Disabled . | . . . . . Max in Single Turn . | . . . . . Machines Sabotaged . | . . . . . Garrisons Compromised . | . . . . . Overloaded Fab Kills . | . . . . . Fab Network Shutdowns . | . . . . . Hacking | -11 -10 -10 -10 -9 --------- Run | Scr Mat Min Exi Min Machines Accessed 12 | . 8 2 1 1 Terminals 9 | . 6 2 . 1 Fabricators . | . . . . . Repair Stations 1 | . 1 . . . Recycling Units 1 | . 1 . . . Scanalyzers . | . . . . . Garrison Access . | . . . . . Total Hacks 43 | . 28 12 1 2 Successful 23 | . 15 6 1 1 Failed 20 | . 13 6 . 1 Catastrophic 3 | . 3 . . . Database Lockouts . | . . . . . Manual 33 | . 21 10 . 2 Terminals 35 | . 21 12 . 2 Fabricators . | . . . . . Repair Stations 6 | . 6 . . . Recycling Units 1 | . 1 . . . Scanalyzers . | . . . . . Garrison Access . | . . . . . Terminal Hacks 13 | . 6 6 1 . Record 1 | . . . 1 . Part Schematic 5 | . 3 2 . . Robot Analysis 2 | . 1 1 . . Alert Level 1 | . . 1 . . Unreport Threat 1 | . . 1 . . Recall Investigation 1 | . 1 . . . Recall Reinforcements 1 | . 1 . . . Zone Layout 1 | . . 1 . . Fabricator Hacks . | . . . . . Repair Station Hacks 6 | . 6 . . . Scan Component 3 | . 3 . . . Repair 3 | . 3 . . . Recycling Unit Hacks . | . . . . . Scanalyzer . | . . . . . Garrison Access Hacks . | . . . . . Unauthorized Hacks 4 | . 3 . . 1 Terminals 3 | . 2 . . 1 Botnet 2 | . 2 . . . Disrupt 1 | . . . . 1 Fabricators . | . . . . . Repair Stations . | . . . . . Recycling Units 1 | . 1 . . . Tunnel 1 | . 1 . . . Scanalyzers . | . . . . . Garrison Access . | . . . . . Data Cores Recovered . | . . . . . Used . | . . . . . Hacking Detections 10 | . 7 2 . 1 Full Trace Events 2 | . 2 . . . Feedback Events . | . . . . . Feedback Blocked . | . . . . . Robot Schematics Acquired . | . . . . . Robots Built . | . . . . . Matter . | . . . . . Time . | . . . . . Total Robot Build Rating . | . . . . . Part Schematics Acquired 5 | . 3 2 . . Parts Built . | . . . . . Matter . | . . . . . Time . | . . . . . Total Part Build Rating . | . . . . . Parts Repaired 3 | . 3 . . . Time 78 | . 78 . . . Parts Recycled . | . . . . . Recycled Matter . | . . . . . Retrieved Matter . | . . . . . Retrieved Components . | . . . . . Parts Scanalyzed . | . . . . . Part Schematics Acquired . | . . . . . Parts Damaged . | . . . . . Bothacking | -11 -10 -10 -10 -9 ------------ Run | Scr Mat Min Exi Min Used RIF Installer . | . . . . . Robots Hacked . | . . . . . Non-combat . | . . . . . Combat . | . . . . . Robot Hacks Applied . | . . . . . Relay Couplers Released . | . . . . . Robots Rewired . | . . . . . Allies Hacked . | . . . . . Hacks Repelled . | . . . . . Allies | -11 -10 -10 -10 -9 -------- Run | Scr Mat Min Exi Min Total Allies 3 | . . 3 . . Largest Group 3 | . . 3 1 . Highest-Rated Group 72 | . . 72 10 . Highest-Rated Ally 31 | . . 31 10 . Total Orders . | . . . . . Ally Attacks 19 | . . 19 . . Total Damage 329 | . . 329 . . Kills 3 | . . 3 . . Allies Corrupted . | . . . . . Allies Melted . | . . . . . Intel | -11 -10 -10 -10 -9 ------- Run | Scr Mat Min Exi Min Robot Analysis Total 2 | . 1 1 . . Derelict Logs Recovered 2 | . . 1 . 1 Drone Launches . | . . . . . Drone Recoveries . | . . . . . Exploration | -11 -10 -10 -10 -9 ------------- Run | Scr Mat Min Exi Min Turns Passed 3774 | 143 1480 1086 544 521 Spaces Moved 2085 | 70 736 628 340 311 Core 4 | 4 . . . . Treads 2058 | 66 736 628 340 288 Legs . | . . . . . Wheels 23 | . . . . 23 Hover . | . . . . . Flight . | . . . . . Fastest Speed 50 | 50 160 160 160 115 Average Speed 159 | 153 160 160 160 156 Slowest Speed 160 | 160 160 160 160 160 Overloaded Moves . | . . . . . Propulsion Burnouts . | . . . . . Robots Hopped . | . . . . . Cave-ins Triggered . | . . . . . Exploration Rate (%) 70 | 5 94 98 82 73 Regions Visited 4 Branch Regions 3 Pre-discovered Areas 1 | . 1 . . . Known Exits Taken . | . . . . . Unknown Exits Taken 4 | 1 1 1 1 . Scrap Searched 1 | . . 1 . . Spaces Dug 2 | . . 2 . . Terrain Destroyed 21 | . 19 2 . . Melee 2 | . . 2 . . Projectile . | . . . . . AOE 19 | . 19 . . . Terrain Rammed . | . . . . . Walls Destroyed . | . . . . . Machines Disabled . | . . . . . Actions | -11 -10 -10 -10 -9 --------- Run | Scr Mat Min Exi Min Total 2385 | 89 941 685 341 329 Wait 143 | . 98 43 . 2 Move 2081 | 69 735 627 339 311 Hop . | . . . . . Pick Up 25 | 7 18 . . . Fast Attach 11 | 6 5 . . . Attach 3 | . 2 . . 1 Detach 1 | . . . . 1 Swap 14 | . 7 3 1 3 Drop 16 | . 15 . 1 . Fire 77 | 7 54 8 . 8 Melee 4 | . . 4 . . Ram . | . . . . . Kick . | . . . . . Crush 10 | . 7 . . 3 Escape Stasis . | . . . . . Rewire . | . . . . . Trap . | . . . . . Miscellaneous . | . . . . . Route ------- -11/Scrapyard -10/Materials (discovered 4 exits: [*Mat x3] / *Min) -10/Mines (discovered 3 exits: [*Mat x2] / *Exi) -10/Exiles -9/Mines (discovered 1 exit: [*Mat]) History --------- Turn | Location | Event 13 | -11/Scrapyard | Discovered new exit (range 15) 144 | -11/Scrapyard | Entered Materials 318 | -10/Materials | Build established: Mutant 425 | -10/Materials | Discovered new exit (range 6) 486 | -10/Materials | Discovered new exit (range 7) 674 | -10/Materials | Repaired Lgt. Armor Plating 701 | -10/Materials | Repaired Lgt. Treads 729 | -10/Materials | Repaired Assault Rifle 866 | -10/Materials | Discovered new exit (range 16) 1063 | -10/Materials | Discovered new exit (range 15) 1624 | -10/Materials | Entered Mines 1632 | -10/Mines | Discovered new exit (range 3) 1699 | -10/Mines | Received a Mining Laser from a helpful Derelict 1835 | -10/Mines | Learned Materials terminal intel 2011 | -10/Mines | Joined a pair of Derelicts in attacking an 0b10 outpost 2128 | -10/Mines | Discovered new exit (range 9) 2130 | -10/Mines | Core integrity fell below 50% 2376 | -10/Mines | Discovered new exit (range 9) 2688 | -10/Mines | Deemed a non-threat by the Exiles lab entrance 2710 | -10/Mines | Entered Exiles 2710 | -10/Exiles | Found Exiles lab abandoned 2710 | -10/Exiles | Accompanied by 1 ally 3238 | -10/Exiles | Discovered new exit (range 12) 3254 | -10/Exiles | Entered Mines 3281 | -9/Mines | Received a Rocket Launcher from a helpful Derelict 3342 | -9/Mines | Learned Materials non-interactive machine intel 3659 | -9/Mines | Discovered new exit (range 11) 3746 | -9/Mines | Assembled infested the area 3751 | -9/Mines | Assisted by a Guerilla fighting off Assembled 3772 | -9/Mines | Core integrity fell below 20% 3775 | -9/Mines | Destroyed by D-53 Grenadier with Mini Grenade Launcher Last Messages --------------- 03708_ K-01 Serf destroyed. 03719_ Slammed into U-05 Engineer. 03746_ ALERT: Infestation in the mines, dispatching Demolisher response squad. 03751_ A derelict emerges from the shadows: "You need to get out of here! I've been tracking a group of Assembled to figure out where they're coming from, and they're closing on this area, come on!" 03752_ EA-MOX(h): "I'll hold them off! Go on ahead or try to find another way!" 03765_ C-30 ARC bursts open, deploying its payload. 03765_ D-53 Grenadier unfolds itself. 03765_ Lgt. Armor Plating destroyed. 03767_ Lgt. Assault Rifle destroyed. 03768_ Acquired 10 matter. 03769_ The unstable cave ceiling collapses. 03769_ C-30 ARC bursts open, deploying its payload. 03769_ S-10 Pest unfolds itself. 03771_ D-53 Grenadier destroyed. 03773_ The unstable cave ceiling collapses. 03773_ Pulverizer disabled. Map ----- +----------------------------------------------------+ | | | | | | | | | | | | | | | | | | | | | | | | | | | ???????????????????????????????????????????????? | | ???????????????????????????????????????????????? | | ??????????????????????????????????????????###??? | | ???????????????????????????????????####### ##?? | | ??????????????????????????????????## #?? | | ??????????????????????????????##### #?? | | ??????????????????????????????# """ #?? | | ????????????###??##???????????# #??# """ #?? | | ????????????# ??????###### #### """ #?? | | ????????????# " """ ?????# #??? | | ????????????#"%"""" ?????# ########## < ##??? | | ????????????# """ ###### #????????### #???? | | ????????????# s @k####???????## ##???? | | ???????????????## %= #???####?####????? | | ??????????????## s " #??## ###???????? | | ??????????????# s "" #?## ##??????? | | ??????####????# "" #?# #??????? | | ?????## ###### # #?? """ #??????? | | ?????# d #??# """ #??????? | | ##??## ###### #??# """ #??????? | | ### ##????# ## ##?## #??????? | | #????# # ##### #?## ##??????? | | % #????############# ### ##???????? | | ## #?????????# ##????????? | | ##### #????????# ##### ##?????????? | | ## #???????# #??# ###??????????? | | ??? ##?????# #??# ##???####?????? | | ????? ##????# #??### ##???## ##????? | | #??????# #????# #????### ##????# ##???? | | ????????# #????# ######## #????## #???? | | ?????????# #????# ## #???## #???? | | ?????????# #????# ##### ## ##### #???? | | ?????????# ###### #???# ## #???? | | ??????????# #???# #### #???? | | ??????????## ## ######???# #### ### ##???? | | ???????????##### #????????# ##??##????? | | ???????????????# #??#########%## #?????????? | +----------------------------------------------------+ Best States ------------- Heat Dissipation 25 Energy Generation 10 Energy Capacity 250 Matter Stores 300 Matter Capacity 300 Sight Range 16 Terrain Scan Density 10 Armor Coverage 150 Evasion (%) 40 Recoil Reduction 2 Item Schematics ----------------- Med. Storage Unit | -10/Materials | Hacked Sml. Storage Unit | -10/Materials | Hacked Lrg. Storage Unit | -10/Materials | Hacked Cargo Storage Unit | -10/Mines | Hacked Huge Storage Unit | -10/Mines | Hacked Robot Schematics ------------------ None Fabricated ------------ Nothing Alien Tech Used ----------------- None Achievements -------------- None Challenges ------------ None Game ------ Seed LatentRemoteCasing Manual? 0 Play Time 00:26:09 Cumulative 396.0 hours Start 2021.07.23 @ 19:58:12 End 2021.07.23 @ 20:30:56 Sessions 1 Manual Loads 0 Difficulty Rogue Special Mode None Game No. 377 Rogue 162 Adventurer 112 Explorer 103 Win Type - Total 29 Types 21/0/5/2/0/0/0/1/0 Lore% 84 Gallery% 90 Achievement% 76 Wizard Run 0 Options --------- ASCII 1 Keyboard 0 Movement Numpad Keybinds 0 Fullscreen 2 Font 18/TerminusBold Map View 76x50 Tactical HUD 1 Map Filters NONE Filters NONE Steam 1 RUN: 6334e98b-afc9-4677-9f2d-f730897705e2